Cogmind - Beta 10.1 @@@ ROGUE MODE // 2020.10.04 @ 20:40:43 Player: gorlork Result: Destroyed by G-34 Mercenary with Small Laser Performance ------------- Evolutions (1) 500 Regions Visited (3) 600 Robots Destroyed (60) 300 Value Destroyed (1103) 1103 Prototype IDs (1) 20 Alien Tech Used (0) 0 Bonus (0) 0 TOTAL SCORE: 2523 Bonus ------- None Cogmind --------- Core Integrity 0/400 Matter 296/300 Energy 100/100 System Corruption 0% Temperature Cool (6) Movement Treading (160) Location -9/Storage Parts ------- > --- POWER (1) -------- (None) > --- PROPULSION (2) --- Light Treads > --- UTILITY (3) ------ Improved Heat Sink Signal Interpreter > --- WEAPON (3) ------- Heavy Assault Rifle Mace Flail > --- INVENTORY (4) ---- Light Armor Plating Particle Gun Heavy Assault Rifle EMP Blaster Peak State ------------ > --- POWER ------------ Light Nuclear Core > --- PROPULSION ------- Aluminum Leg Aluminum Leg > --- UTILITY ---------- Improved Heat Sink Light Armor Plating > --- WEAPON ----------- Autogun Autogun Flail > --- INVENTORY -------- Signal Interpreter Particle Gun EMP Blaster [Rating: 15] Favorites ----------- Power Ion Engine Engine Ion Engine Power Core Light Nuclear Core Propulsion Light Treads Treads Light Treads Leg Aluminum Leg Utility Improved Heat Sink Device Improved Heat Sink Processor Signal Interpreter Protection Light Armor Plating Weapon Flail Energy Gun EM Pulse Gun Ballistic Gun Heavy Assault Rifle Impact Weapon Flail Build | -11 -10 -9 -9 ------- Run | Scr Mat Mat Sto Slots Evolved 2 | . . 2 . Power . | . . . . Propulsion . | . . . . Utility 1 | . . 1 . Weapon 1 | . . 1 . Parts Attached 43 | 6 12 24 1 Power 8 | 1 3 4 . Engine 6 | 1 3 2 . Core 2 | . . 2 . Reactor . | . . . . Propulsion 13 | 2 2 8 1 Treads 9 | 2 2 4 1 Leg 4 | . . 4 . Wheel . | . . . . Hover . | . . . . Flight . | . . . . Utility 8 | 1 3 4 . Device 4 | 1 2 1 . Storage . | . . . . Processor 1 | . . 1 . Hackware . | . . . . Protection 3 | . 1 2 . Artifact . | . . . . Weapon 14 | 2 4 8 . Energy Gun 1 | . 1 . . Energy Cannon . | . . . . Ballistic Gun 8 | 2 1 5 . Ballistic Cannon . | . . . . Launcher . | . . . . Special Weapon . | . . . . Impact Weapon 5 | . 2 3 . Slashing Weapon . | . . . . Piercing Weapon . | . . . . Special Melee Weapon . | . . . . Unidentified Prototypes 1 | . . 1 . Parts Lost 9 | . 1 5 3 Power 2 | . . 1 1 Propulsion 2 | . . 1 1 Utility 3 | . . 2 1 Weapon 2 | . 1 1 . Highest Loss Streak 5 | . 1 5 2 Average Slot Usage (%) 86 | . 97 82 88 Engine 8 | . 13 7 5 Core 2 | . . 3 . Treads 19 | . 27 15 22 Leg 4 | . . 6 . Device 14 | . 25 10 11 Processor 1 | . . 1 11 Protection 5 | . . 7 5 Ballistic Gun 11 | . 5 13 11 Impact Weapon 18 | . 20 16 22 Naked Turns . | . . . . Heaviest Build 19 | 8 11 19 18 Greatest Support 40 | 40 40 40 40 Greatest Overweight (x) . | . . . . Average Overweight (x) . | . . . . Largest Inventory Capacity 4 | 4 4 4 4 Average Capacity 4 | 4 4 4 4 Most Carried 4 | 3 4 4 4 Average Carried 3 | 1 3 3 4 Final Capacity 4 | 4 4 4 4 Final Carried 4 | 1 4 4 4 Class Distribution -------------------- 57% | Scavenger-Mutant 42% | Mutant Dominant Class ---------------- Mutant | -10/Materials Scavenger-Mutant | -9/Materials Scavenger-Mutant | -9/Storage Resources | -11 -10 -9 -9 ----------- Run | Scr Mat Mat Sto Matter Collected 1080 | 292 187 546 55 Remotely . | . . . . Salvage Created 2098 | 127 406 1324 241 Parts 114 | 5 21 74 14 Haulers Intercepted 3 | . 1 2 . Recyclers Shooed 2 | . . 1 1 Parts Field Recycled . | . . . . Retrieved Matter . | . . . . Parts Self-Destructed . | . . . . Prevented . | . . . . Kills | -11 -10 -9 -9 ------- Run | Scr Mat Mat Sto Combat Hostiles Destroyed 32 | . 5 23 4 Melee 6 | . 1 4 1 Guns 19 | . 3 14 2 Classes Destroyed 10 | 2 5 3 . Worker 7 | . . 7 . Builder 3 | . 1 2 . Tunneler 2 | 2 . . . Hauler 3 | . 1 2 . Recycler 7 | 1 1 4 1 Operator 2 | . 1 1 . Watcher 4 | . 1 3 . Swarmer 12 | . . 12 . Grunt 13 | . 5 6 2 Sentry 7 | . . 5 2 Best Kill Streak 6 | 2 3 6 4 Combat Bots Only 5 | . 2 5 4 Max Kills in Single Turn 2 | 2 1 1 1 Gunslinging . | . . . . Exploded . | . . . . Melee 1 | . 1 1 1 Uniques/NPCs Destroyed . | . . . . Combat | -11 -10 -9 -9 -------- Run | Scr Mat Mat Sto Damage Taken 2056 | . 217 1330 509 Core 401 | . . 289 112 Absorbed by Shields . | . . . . Core Remaining (%) 100 | 100 100 . . Volleys Fired 105 | 7 12 66 20 Largest 2 | 2 2 2 1 Hottest 60 | 40 60 46 23 Shots Fired 150 | 14 24 92 20 Gun 150 | 14 24 92 20 Cannon . | . . . . Launcher . | . . . . Special . | . . . . Kinetic 146 | 14 20 92 20 Thermal . | . . . . Explosive . | . . . . Electromagnetic 4 | . 4 . . Robot Hit Streak 16 | 4 8 16 8 Robot Miss Streak 6 | 1 2 6 1 Penetration Max . | . . . . Secondary Targets 1 | . . 1 . Max Gunslinging Chain 1 | . . 1 . Shots Hit Robots 183 | 9 30 112 32 Core Hits 65 | 4 13 41 7 Critical Hits 2 | . 1 1 . Critical Kills . | . . . . Critical Parts Destroyed 2 | . 1 1 . Melee Attacks 94 | . 13 62 19 Impact 94 | . 13 62 19 Slashing . | . . . . Piercing . | . . . . Sneak Attacks 11 | . 2 8 1 Combat Hostiles . | . . . . Follow-up Attacks 7 | . 1 5 1 Damage Inflicted 3899 | 148 691 2451 609 Guns 1603 | 148 260 945 250 Cannons . | . . . . Explosions 36 | . 36 . . Melee 2260 | . 395 1506 359 Ramming . | . . . . Kinetic 1570 | 148 227 945 250 Thermal 36 | . 36 . . Explosive . | . . . . Electromagnetic 33 | . 33 . . Impact 2260 | . 395 1506 359 Slashing . | . . . . Piercing . | . . . . Highest Corruption . | . . . . Average Corruption . | . . . . Corruption Purged . | . . . . Overload Shots . | . . . . Overflow Damage 444 | . 69 355 20 Projectiles . | . . . . Explosions . | . . . . Melee 444 | . 69 355 20 Knockbacks 10 | . 3 5 2 Impact 9 | . 2 5 2 Kinetic . | . . . . Secondary 1 | . 1 . . Self-Inflicted Damage 35 | . 35 . . Shots 1 | . 1 . . Rammed . | . . . . Targets Rammed . | . . . . Kicked . | . . . . Crushed . | . . . . Highest Temperature 12 | . 12 . . Average Temperature 12 | . 12 . . Received Heat Transfer 597 | . 87 339 171 Siege Activations . | . . . . Robots Corrupted . | . . . . Combat Hostiles . | . . . . Parts Fried 13 | . 2 11 . Impact Corruptions 24 | . 2 20 2 Robots Melted . | . . . . Combat Hostiles . | . . . . Parts Melted 1 | . . 1 . Heat Transferred 50 | . 50 . . Parts Sabotaged . | . . . . Parts Stolen . | . . . . Parts Stripped . | . . . . Power Chain Reactions 1 | . 1 . . Missiles Intercepted . | . . . . Alert | -11 -10 -9 -9 ------- Run | Scr Mat Mat Sto Peak Influence 357 | 15 120 357 250 Initial 150 | . 9 26 150 Average 112 | 4 72 124 191 Maximum Alert Level 1 | . . 1 1 Low Security (%) 83 | 100 100 78 60 Level 1 16 | . . 21 39 Level 2 . | . . . . Level 3 . | . . . . Level 4 . | . . . . Level 5 . | . . . . High Security . | . . . . Max Security . | . . . . Squads Dispatched 4 | . 1 3 . Investigation 1 | . . 1 . Extermination . | . . . . Reinforcement 3 | . 1 2 . Assault . | . . . . Garrison . | . . . . Intercept . | . . . . Construction Impeded . | . . . . Haulers Reinforced . | . . . . Stealth | -11 -10 -9 -9 --------- Run | Scr Mat Mat Sto Distress Signals 7 | . 1 5 1 Communications Jammed . | . . . . Distress Signals . | . . . . Times Spotted 61 | . 11 42 8 Peak Tracking Total 9 | . 4 9 4 Tactical Retreats 4 | . 1 3 . Traps | -11 -10 -9 -9 ------- Run | Scr Mat Mat Sto Traps Triggered 4 | . 2 2 . Indirectly . | . . . . Trap Hack Attempts . | . . . . Triggered . | . . . . Disarmed . | . . . . Reprogrammed . | . . . . Reused . | . . . . Traps Extracted . | . . . . Installed . | . . . . Triggered . | . . . . Machines | -11 -10 -9 -9 ---------- Run | Scr Mat Mat Sto Machines Disabled 2 | . 1 1 . Max in Single Turn 1 | . 1 1 . Machines Sabotaged . | . . . . Garrisons Compromised . | . . . . Overloaded Fab Kills . | . . . . Fab Network Shutdowns . | . . . . Hacking | -11 -10 -9 -9 --------- Run | Scr Mat Mat Sto Machines Accessed 6 | . 2 4 . Terminals 5 | . 2 3 . Fabricators . | . . . . Repair Stations 1 | . . 1 . Recycling Units . | . . . . Scanalyzers . | . . . . Garrison Access . | . . . . Total Hacks 23 | . 7 16 . Successful 20 | . 7 13 . Failed 2 | . . 2 . Catastrophic . | . . . . Database Lockouts 1 | . . 1 . Manual . | . . . . Terminals 20 | . 7 13 . Fabricators . | . . . . Repair Stations 3 | . . 3 . Recycling Units . | . . . . Scanalyzers . | . . . . Garrison Access . | . . . . Terminal Hacks 18 | . 7 11 . Record 16 | . 6 10 . Terminal Index 1 | . 1 . . Alert Level 1 | . . 1 . Fabricator Hacks . | . . . . Repair Station Hacks 2 | . . 2 . Scan Component 1 | . . 1 . Repair 1 | . . 1 . Recycling Unit Hacks . | . . . . Scanalyzer . | . . . . Garrison Access Hacks . | . . . . Unauthorized Hacks . | . . . . Terminals . | . . . . Fabricators . | . . . . Repair Stations . | . . . . Recycling Units . | . . . . Scanalyzers . | . . . . Garrison Access . | . . . . Data Cores Recovered . | . . . . Used . | . . . . Hacking Detections 4 | . 1 3 . Full Trace Events 1 | . . 1 . Feedback Events . | . . . . Feedback Blocked . | . . . . Robot Schematics Acquired . | . . . . Robots Built . | . . . . Matter . | . . . . Time . | . . . . Total Robot Build Rating . | . . . . Part Schematics Acquired . | . . . . Parts Built . | . . . . Matter . | . . . . Time . | . . . . Total Part Build Rating . | . . . . Parts Repaired 1 | . . 1 . Time 32 | . . 32 . Parts Recycled . | . . . . Recycled Matter . | . . . . Retrieved Matter . | . . . . Retrieved Components . | . . . . Parts Scanalyzed . | . . . . Part Schematics Acquired . | . . . . Parts Damaged . | . . . . Bothacking | -11 -10 -9 -9 ------------ Run | Scr Mat Mat Sto Used RIF Installer . | . . . . Robots Hacked . | . . . . Non-combat . | . . . . Combat . | . . . . Robot Hacks Applied . | . . . . Relay Couplers Released . | . . . . Robots Rewired . | . . . . Allies Hacked . | . . . . Hacks Repelled . | . . . . Allies | -11 -10 -9 -9 -------- Run | Scr Mat Mat Sto Total Allies . | . . . . Largest Group . | . . . . Highest-Rated Group . | . . . . Highest-Rated Ally . | . . . . Total Orders . | . . . . Ally Attacks . | . . . . Total Damage . | . . . . Kills . | . . . . Allies Corrupted . | . . . . Allies Melted . | . . . . Intel | -11 -10 -9 -9 ------- Run | Scr Mat Mat Sto Robot Analysis Total . | . . . . Derelict Logs Recovered . | . . . . Drone Launches . | . . . . Drone Recoveries . | . . . . Exploration | -11 -10 -9 -9 ------------- Run | Scr Mat Mat Sto Turns Passed 2421 | 122 596 1442 261 Spaces Moved 963 | 59 218 585 101 Core 5 | 5 . . . Treads 721 | 54 218 348 101 Legs 237 | . . 237 . Wheels . | . . . . Hover . | . . . . Flight . | . . . . Fastest Speed 50 | 50 160 120 160 Average Speed 149 | 150 160 143 160 Slowest Speed 160 | 160 160 160 160 Overloaded Moves . | . . . . Propulsion Burnouts . | . . . . Robots Hopped . | . . . . Cave-ins Triggered . | . . . . Exploration Rate (%) 28 | 5 39 44 24 Regions Visited 3 Branch Regions 1 Pre-discovered Areas . | . . . . Known Exits Taken 1 | . . 1 . Unknown Exits Taken 2 | 1 1 . . Scrap Searched . | . . . . Spaces Dug . | . . . . Terrain Destroyed 5 | . 5 . . Melee . | . . . . Projectile . | . . . . AOE 5 | . 5 . . Terrain Rammed . | . . . . Walls Destroyed . | . . . . Machines Disabled . | . . . . Actions | -11 -10 -9 -9 --------- Run | Scr Mat Mat Sto Total 1671 | 78 427 1013 153 Wait 424 | . 156 256 12 Move 960 | 58 217 584 101 Hop . | . . . . Pick Up 32 | 7 11 14 . Fast Attach 6 | . 3 3 . Attach 17 | 6 3 8 . Detach . | . . . . Swap 20 | . 6 13 1 Drop 22 | . 9 12 1 Fire 105 | 7 12 66 20 Melee 85 | . 10 57 18 Ram . | . . . . Kick . | . . . . Crush . | . . . . Escape Stasis . | . . . . Rewire . | . . . . Trap . | . . . . Miscellaneous . | . . . . Route ------- -11/Scrapyard -10/Materials -9/Materials (discovered 2 exits: *Min / *Sto) -9/Storage History --------- Turn | Location | Event 36 | -11/Scrapyard | Discovered new exit (range 14) 123 | -11/Scrapyard | Entered Materials 334 | -10/Materials | Build established: Mutant 681 | -10/Materials | Discovered new exit (range 16) 719 | -10/Materials | Entered another Materials area 719 | -9/Materials | Evolved 2 slots: Utility x1, Weapon x1 1061 | -9/Materials | Lost 5 parts (1p1n2u1w) 1176 | -9/Materials | Central database locked down 1275 | -9/Materials | Repaired Flail 1335 | -9/Materials | Build established: Scavenger-Mutant 1395 | -9/Materials | Core integrity fell below 50% 1966 | -9/Materials | Discovered new exit (range 16) 2027 | -9/Materials | Identified exit to Storage 2063 | -9/Materials | Discovered new exit (range 16) 2114 | -9/Materials | Identified exit to Mines 2161 | -9/Materials | Entered Storage 2317 | -9/Storage | Core integrity fell below 20% 2422 | -9/Storage | Destroyed by G-34 Mercenary with Small Laser Last Messages --------------- 02331_ Acquired 3 matter. 02331_ K-01 Serf collects debris. 02331_ R-06 Scavenger collects Lgt. Treads. 02334_ K-01 Serf collects debris. 02337_ R-06 Scavenger collects Aluminum Leg. 02338_ K-01 Serf collects debris. 02340_ R-06 Scavenger collects Heat Sink. 02340_ K-01 Serf collects debris. 02343_ R-06 Scavenger collects Heat Sink. 02344_ K-01 Serf collects debris. 02346_ R-06 Scavenger collects Hvy. Assault Rifle. 02347_ K-01 Serf collects debris. 02352_ R-06 Scavenger destroyed. 02354_ K-01 Serf collects debris. 02368_ Acquired 27 matter. 02370_ K-01 Serf collects debris. 02380_ R-06 Scavenger collects Beam Rifle. 02383_ R-06 Scavenger collects Aluminum Leg. 02412_ G-34 Mercenary knocked back. 02420_ Lgt. Treads destroyed. Map ----- +----------------------------------------------------+ | | | | | | | | | | | | | | | | | | | | | | | | | ?????????????????????????????????????????????????? | | ?????????????????????????????????????????????????? | | ???????????????????????????????????????########### | | ???????????????????????????????????????# | | ???????????????????????????????????????# | | ???????????????????????????????????????# | | ???????????????????????????????????##### #### | | ?????????????????????#####?##?#?? # #??# | | ???????????????????###"T"## #? """ # #??# | | ???????????????????# #?# """ # #??# | | ???????????????????# """ #?# """ # #??# | | ???????????????????# """ #?# " #??# | | ???????????????????# g""" #?# """ # #??# | | ???????????????????# g @l #?# """ #! #### | | ???????????????????# """ #?# """ [# % + | | ???????????????????# """ #?# ![/%% ####### | | ???????????????????# a""" #?###########+#####??? | | ???????????????????# #???????# % #??? | | ???????????????????#####+############ ] #??? | | ??????????????????????# [=%!!=+ #??? | | ??????????????? ##### ##### ! #??? | | ??????????? #???# #???# #??? | | ???????????### #???# #???# ! #??? | | ?????????????#+### #### #???# #???# #??? | | ?????????????????#????# #???#+#???# ! #??? | | ??????????????????????# #??? ???###########??? | | ??????????????????????# #??? ????????????????? | | ??????????????????????# #??? ????????????????? | | ??????????????????????# #??? ????????????????? | | ??????????????????????# #??? ????????????????? | | ??????????????????????# #??? ????????????????? | | ??????????????????????# ???? ????????????????? | | ??????????????????????# ???? ????????????????? | | ??????????????????????+ ???? ????????????????? | | ??????????????????????? ???? ????????????????? | | ?????????????????????????????????????????????????? | | ?????????????????????????????????????????????????? | | ?????????????????????????????????????????????????? | +----------------------------------------------------+ Best States ------------- Heat Dissipation 42 Energy Generation 14 Energy Capacity 265 Matter Stores 300 Matter Capacity 300 Sight Range 16 Robot Scan Range 10 Terrain Scan Range 16 Terrain Scan Density 10 Armor Coverage 150 Propulsion Shielding 33 Evasion (%) 40 Recoil Reduction 2 Item Schematics ----------------- None Robot Schematics ------------------ None Fabricated ------------ Nothing Alien Tech Used ----------------- None Achievements -------------- None Challenges ------------ None Game ------ Seed NetworkOpticalFlamer Manual? 0 Play Time 00:26:57 Cumulative 30.3 hours Start 2020.10.04 @ 20:16:06 End 2020.10.04 @ 20:40:43 Sessions 1 Manual Loads 0 Difficulty Rogue Special Mode None Game No. 57 Rogue 57 Adventurer 0 Explorer 0 Win Type - Total 0 Types 0/0/0/0/0/0/0/0/0 Lore% 34 Gallery% 34 Achievement% 28 Wizard Run 0 Options --------- ASCII 0 Keyboard 0 Movement Mouse Keybinds 0 Fullscreen 1 Font 24/Smallcaps Map View 76x50 Tactical HUD 1 Map Filters NONE Filters NONE Steam 1 RUN: b6e9ed5c-a8e2-4c6d-bf86-ff535967caea